fUSD/lending_fUSD_20240927
["ID","MTS","AMOUNT","RATE_DAILY","PERIOD"]
[339282239,1727436678642,-502.69,0.00011899,2]
[339282240,1727436678651,-500.0,0.00011899,2]
[339282241,1727436678660,-816.23286975,0.00011899,2]
[339282242,1727436678670,-502.91987493,0.00011899,2]
[339282243,1727436678679,-500.0,0.00011899,2]
[339282244,1727436678688,-1116.75,0.00011899,2]
[339282245,1727436678699,-1116.75,0.00011899,2]
[339282246,1727436678709,-1116.75,0.00011899,2]
[339282247,1727436678729,-500.0,0.00011899,2]
[339282248,1727436678754,-1116.75,0.00011899,2]
[339282249,1727436678783,-500.0,0.00011899,2]
[339282250,1727436678811,-1116.75,0.00011899,2]
[339282251,1727436678840,-500.0,0.00011899,2]
[339282252,1727436678868,-1116.75,0.00011899,2]
[339282253,1727436678897,-500.0,0.00011899,2]
[339282254,1727436678928,-1116.75,0.00011899,2]
[339282255,1727436678954,-1116.75,0.00011899,2]
[339282256,1727436678963,-1116.75,0.00011899,2]
[339282257,1727436678973,-541.01,0.00011899,2]
[339282258,1727436678982,-541.01,0.00011899,2]
[339282259,1727436678991,-541.01,0.00011899,2]
[339282260,1727436679001,-500.0,0.00011899,2]
[339282261,1727436679011,-541.01,0.00011899,2]
[339282262,1727436679021,-500.0,0.00011899,2]
[339282263,1727436679030,-500.0,0.00011899,2]
[339282264,1727436679039,-500.0,0.00011899,2]
[339282265,1727436679048,-500.0,0.00011899,2]
[339282266,1727436679058,-500.0,0.00011899,2]
[339282267,1727436679068,-500.0,0.00011899,2]
[339282268,1727436679078,-820.21,0.00011899,2]
[339282269,1727436679087,-500.0,0.00011899,2]
[339282270,1727436679096,-820.21,0.00011899,2]
[339282271,1727436679105,-1281.2,0.00011899,2]
[339282272,1727436679115,-610.81214245,0.00011899,2]
[339282273,1727436679124,-820.21,0.00011899,2]
[339282274,1727436679134,-1281.2,0.00011899,2]
[339282275,1727436679143,-820.21,0.00011899,2]
[339282276,1727436679151,-500.0,0.00011899,2]
[339282277,1727436679161,-820.21,0.00011899,2]
[339282278,1727436679170,-1281.2,0.00011899,2]
[339282279,1727436679179,-500.0,0.00011899,2]
[339282280,1727436679189,-820.21,0.00011899,2]
[339282281,1727436679199,-1281.2,0.00011899,2]
[339282282,1727436679208,-500.0,0.00011899,2]
[339282283,1727436679217,-820.21,0.00011899,2]
[339282284,1727436679226,-1281.2,0.00011899,2]
[339282285,1727436679236,-500.0,0.00011899,2]
[339282286,1727436679245,-1281.2,0.00011899,2]
[339282287,1727436679255,-569.22779513,0.00011899,2]
[339282288,1727436679264,-1281.2,0.00011899,2]
[339282289,1727436679274,-1281.2,0.00011899,2]
[339282290,1727436679283,-1281.2,0.00011899,2]
[339282291,1727436679292,-500.0,0.00011899,2]
[339282292,1727436679301,-500.0,0.00011899,2]
[339282293,1727436679311,-500.0,0.00011899,2]
[339282294,1727436679322,-500.0,0.00011899,2]
[339282295,1727436679332,-879.28,0.00011899,2]
[339282296,1727436679341,-5.14212992,0.00011899,2]
[339282297,1727436679406,-874.13787008,0.00011899,2]
[339282298,1727436679415,-879.28,0.00011899,2]
[339282299,1727436679425,-1521.83212992,0.00011899,2]
[339282300,1727436765157,179.22,0.00011097,2]
[339282301,1727436970067,180.69,0.0001103,2]
[339282302,1727437056080,609.13,9.082e-05,2]
[339282303,1727437086487,430.4,0.00010989,2]
[339282304,1727437147751,250.0,0.00010974,2]
[339282305,1727437289785,500.0,0.00010959,2]
[339282306,1727437400973,157.9,0.00010945,2]
[339282307,1727437452809,188.35,0.00010959,2]
[339282313,1727437501311,300.0,0.00011106,2]
[339282316,1727437588038,-150.0,0.00011107,2]
[339282317,1727437588203,-150.0,0.00011107,2]
[339282318,1727437588237,-150.0,0.00011107,2]
[339282319,1727437588348,-150.0,0.00011107,2]
[339282320,1727437588390,-150.0,0.00011107,2]
[339282321,1727437588450,-49.0,0.00011107,2]
[339282322,1727437588471,-101.0,0.00011107,2]
[339282323,1727437588540,-150.0,0.00011107,2]
[339282324,1727437588612,-150.0,0.00011107,2]
[339282325,1727437588663,-150.0,0.00011107,2]
[339282326,1727437588763,-150.0,0.00011107,2]
[339282327,1727437588794,-98.0,0.00011107,2]
[339282328,1727437588815,-101.0,0.00011107,2]
[339282329,1727437588853,-150.0,0.00011107,2]
[339282330,1727437588878,-150.0,0.00011107,2]
[339282331,1727437588904,-150.0,0.00011107,2]
[339282332,1727437588977,-150.0,0.00011107,2]
[339282333,1727437589040,-98.0,0.00011107,2]
[339282334,1727437589061,-52.0,0.00011107,2]
[339282335,1727437598329,-150.0,0.00011107,2]
[339282336,1727437598577,-150.0,0.00011107,2]
[339282337,1727437598609,-150.0,0.00011107,2]
[339282338,1727437598673,-150.0,0.00011107,2]
[339282339,1727437598733,-150.0,0.00011107,2]
[339282340,1727437598826,-95.0,0.00011107,2]
[339282341,1727437598846,-179.78313248,0.00011107,2]
[339282354,1727437698464,250.0,0.00010899,2]
[339282356,1727437721436,1000.0,0.00010896,2]
[339282482,1727437832575,-320.21686752,0.00011107,2]
[339282483,1727437832585,-500.0,0.00011107,2]
[339282484,1727437832595,-500.0,0.00011107,2]
[339282485,1727437832605,-242.88742788,0.00011163,2]
[339282486,1727437838346,-257.11257212,0.00011163,2]
[339282487,1727437838356,-219.17746088,0.00011163,2]
[339282488,1727437838453,-280.82253912,0.00011163,2]
[339282489,1727437838463,-500.0,0.00011163,2]
[339282490,1727437838473,-500.0,0.00011164,2]
[339282491,1727437838483,-500.0,0.00011164,2]
[339282492,1727437838492,-500.0,0.00011164,2]
[339282493,1727437838502,-500.0,0.00011345,2]
[339282494,1727437838511,-609.13,0.00011345,2]
[339282495,1727437838520,-500.0,0.00011609,2]
[339282496,1727437838530,-799.0,0.00011609,2]
[339282497,1727437838539,-500.0,0.00011609,2]
[339282498,1727437838549,-500.0,0.0001179,2]
[339282499,1727437838558,-1000.0,0.0001179,2]
[339282500,1727437838567,-403.41821913,0.000118,2]
[339282501,1727437838576,-500.0,0.000118,2]
[339282502,1727437838586,-500.0,0.0001181,2]
[339282503,1727437838595,-150.0,0.00011872,2]
[339282504,1727437838604,-8727.66,0.00011873,2]
[339282505,1727437838614,-501.17397598,0.00011873,2]
[339282506,1727437838624,-500.0,0.00011873,2]
[339282507,1727437838634,-500.0,0.00011889,2]
[339282508,1727437838643,-500.0,0.00011889,2]
[339282509,1727437838653,-251.36,0.00011889,2]
[339282510,1727437838663,-566.3,0.00011889,2]
[339282511,1727437838672,-841.23,0.00011889,2]
[339282512,1727437838682,-500.0,0.00011889,2]
[339282513,1727437838691,-500.0,0.00011889,2]
[339282514,1727437838701,-533.61,0.00011889,2]
[339282515,1727437838710,-1371.31,0.00011889,2]
[339282516,1727437838720,-561.91,0.00011889,2]
[339282517,1727437838729,-500.0,0.00011889,2]
[339282518,1727437838739,-1165.63,0.00011889,2]
[339282519,1727437838749,-500.0,0.00011889,2]
[339282520,1727437838758,-500.0,0.00011889,2]
[339282521,1727437838767,-500.0,0.00011889,2]
[339282522,1727437838777,-500.0,0.00011889,2]
[339282523,1727437838786,-500.0,0.00011889,2]
[339282524,1727437838795,-500.0,0.00011889,2]
[339282525,1727437838805,-500.0,0.00011889,2]
[339282526,1727437838814,-500.0,0.00011889,2]
[339282527,1727437838823,-500.87912807,0.00011889,2]
[339282528,1727437838833,-500.0,0.00011889,2]
[339282529,1727437838843,-500.0,0.00011889,2]
[339282530,1727437838852,-500.0,0.00011889,2]
[339282531,1727437838862,-607.40690325,0.00011889,2]
[339282532,1727437838871,-724.41,0.00011889,2]
[339282533,1727437838881,-500.0,0.00011889,2]
[339282534,1727437838892,-500.0,0.00011889,2]
[339282535,1727437838902,-300.0,0.0001189,2]
[339282537,1727437838915,-485.618,0.0001189,2]
[339282538,1727437838924,-500.0,0.0001189,2]
[339282540,1727437838933,-500.0,0.0001189,2]
[339282542,1727437838942,-500.0,0.0001189,2]
[339282544,1727437838952,-500.0,0.0001189,2]
[339282547,1727437838963,-500.0,0.0001189,2]
[339282549,1727437838972,-500.0,0.0001189,2]
[339282551,1727437838982,-500.0,0.0001189,2]
[339282553,1727437838994,-500.0,0.0001189,2]
[339282555,1727437839003,-500.0,0.0001189,2]
[339282557,1727437839013,-793.06,0.0001189,2]
[339282559,1727437839022,-15433.42107689,0.0001189,2]
[339282561,1727437839031,-1414.51,0.0001189,2]
[339282563,1727437839040,-500.0,0.0001189,2]
[339282565,1727437839050,-798.21,0.0001189,2]
[339282567,1727437839059,-500.0,0.0001189,2]
[339282569,1727437839068,-532.62,0.0001189,2]
[339282571,1727437839077,-500.0,0.0001189,2]
[339282573,1727437839087,-840.91,0.0001189,2]
[339282575,1727437839095,-500.0,0.0001189,2]
[339282577,1727437839105,-4182.76,0.0001189,2]
[339282579,1727437839115,-500.0,0.0001189,2]
[339282581,1727437839124,-1771.14,0.0001189,2]
[339282583,1727437839134,-592.37,0.0001189,2]
[339282585,1727437839143,-500.0,0.0001189,2]
[339282587,1727437839152,-869.9,0.0001189,2]
[339282589,1727437839161,-1863.94,0.0001189,2]
[339282591,1727437839170,-500.0,0.0001189,2]
[339282593,1727437839179,-1233.01,0.0001189,2]
[339282595,1727437839188,-589.93,0.0001189,2]
[339282597,1727437839199,-960.97,0.0001189,2]
[339282599,1727437839208,-705.39,0.0001189,2]
[339282601,1727437839218,-916.5,0.0001189,2]
[339282603,1727437839227,-500.0,0.0001189,2]
[339282605,1727437839237,-500.0,0.0001189,2]
[339282607,1727437839247,-1294.09,0.0001189,2]
[339282609,1727437839256,-500.0,0.0001189,2]
[339282611,1727437839266,-500.0,0.0001189,2]
[339282613,1727437839275,-573.33,0.0001189,2]
[339282615,1727437839285,-899.27,0.0001189,2]
[339282617,1727437839296,-789.63,0.0001189,2]
[339282619,1727437839305,-500.0,0.0001189,2]
[339282621,1727437839315,-387.62570652,0.0001189,2]
[339282623,1727437839324,-561.23,0.0001189,2]
[339282625,1727437839334,-500.0,0.0001189,2]
[339282627,1727437839344,-559.7,0.0001189,2]
[339282629,1727437839354,-2547.52,0.0001189,2]
[339282631,1727437839365,-1711.8,0.0001189,2]
[339282633,1727437839374,-604.56,0.0001189,2]
[339282635,1727437839383,-500.0,0.0001189,2]
[339282637,1727437839392,-883.09,0.0001189,2]
[339282639,1727437839401,-461.69907694,0.0001189,2]
[339282641,1727437839410,-500.0,0.0001189,2]
[339282643,1727437839420,-500.0,0.0001189,2]
[339282645,1727437839429,-500.0,0.0001189,2]
[339282647,1727437839438,-500.0,0.0001189,2]
[339282649,1727437839448,-500.0,0.0001189,2]
[339282651,1727437839457,-2923.92,0.0001189,2]
[339282653,1727437839466,-2923.92,0.0001189,2]
[339282655,1727437839476,-1096.95,0.0001189,2]
[339282657,1727437839487,-1080.73,0.0001189,2]
[339282659,1727437839497,-500.0,0.0001189,2]
[339282661,1727437839506,-500.0,0.0001189,2]
[339282663,1727437839516,-500.0,0.0001189,2]
[339282665,1727437839525,-500.0,0.0001189,2]
[339282667,1727437839534,-800.39,0.0001189,2]
[339282669,1727437839543,-800.39,0.0001189,2]
[339282670,1727437839552,-500.0,0.0001189,2]
[339282672,1727437839562,-1219.31,0.0001189,2]
[339282675,1727437839571,-500.0,0.0001189,2]
[339282677,1727437839581,-1219.31,0.0001189,2]
[339282679,1727437839590,-500.0,0.0001189,2]
[339282681,1727437839599,-500.0,0.0001189,2]
[339282683,1727437839609,-500.0,0.0001189,2]
[339282685,1727437839619,-500.0,0.0001189,2]
[339282687,1727437839628,-500.0,0.0001189,2]
[339282688,1727437839637,-874.92,0.0001189,2]
[339282690,1727437839647,-500.0,0.0001189,2]
[339282692,1727437839656,-500.0,0.0001189,2]
[339282694,1727437839665,-500.0,0.0001189,2]
[339282696,1727437839674,-500.0,0.0001189,2]
[339282698,1727437839683,-500.0,0.0001189,2]
[339282700,1727437839693,-500.0,0.0001189,2]
[339282702,1727437839702,-781.91,0.0001189,2]
[339282704,1727437839711,-781.91,0.0001189,2]
[339282706,1727437839722,-427.55404815,0.0001189,2]
[339282708,1727437839732,-729.32,0.0001189,2]
[339282710,1727437839741,-729.32,0.0001189,2]
[339282712,1727437839750,-500.0,0.0001189,2]
[339282714,1727437839760,-883.24,0.0001189,2]
[339282716,1727437839769,-883.24,0.0001189,2]
[339282719,1727437839779,-500.0,0.0001189,2]
[339282721,1727437839788,-597.55163697,0.0001189,2]
[339282723,1727437839797,-632.16,0.0001189,2]
[339282725,1727437839807,-500.0,0.0001189,2]
[339282727,1727437839818,-500.0,0.0001189,2]
[339282729,1727437839828,-718.67,0.0001189,2]
[339282731,1727437839837,-628.49,0.0001189,2]
[339282733,1727437839847,-628.49,0.0001189,2]
[339282735,1727437839856,-837.1,0.0001189,2]
[339282737,1727437839867,-1099.85,0.0001189,2]
[339282739,1727437839876,-1099.85,0.0001189,2]
[339282741,1727437839886,-509.98552143,0.0001189,2]
[339282743,1727437839896,-662.65,0.0001189,2]
[339282745,1727437839905,-1033.36,0.0001189,2]
[339282747,1727437839918,-500.0,0.0001189,2]
[339282749,1727437839927,-500.0,0.0001189,2]
[339282751,1727437839937,-641.35,0.0001189,2]
[339282753,1727437839946,-641.35,0.0001189,2]
[339282755,1727437839955,-1132.68,0.0001189,2]
[339282757,1727437839964,-942.64,0.0001189,2]
[339282759,1727437839973,-942.64,0.0001189,2]
[339282761,1727437839983,-500.0,0.0001189,2]
[339282763,1727437839992,-500.0,0.0001189,2]
[339282764,1727437840002,-500.0,0.0001189,2]
[339282767,1727437840012,-500.0,0.0001189,2]
[339282768,1727437840021,-715.83,0.0001189,2]
[339282770,1727437840030,-715.83,0.0001189,2]
[339282772,1727437840039,-771.04,0.0001189,2]
[339282774,1727437840048,-626.71,0.0001189,2]
[339282776,1727437840057,-916.87,0.0001189,2]
[339282779,1727437840066,-916.87,0.0001189,2]
[339282781,1727437840076,-716.05,0.0001189,2]
[339282783,1727437840085,-1190.7,0.0001189,2]
[339282786,1727437840094,-1190.7,0.0001189,2]
[339282788,1727437840104,-500.0,0.0001189,2]
[339282790,1727437840115,-500.0,0.0001189,2]
[339282792,1727437840123,-500.0,0.0001189,2]
[339282795,1727437840133,-500.0,0.0001189,2]
[339282797,1727437840143,-500.0,0.0001189,2]
[339282799,1727437840152,-500.0,0.0001189,2]
[339282801,1727437840162,-765.31,0.0001189,2]
[339282802,1727437840171,-1050.08,0.0001189,2]
[339282804,1727437840181,-1050.08,0.0001189,2]
[339282806,1727437840190,-705.51,0.0001189,2]
[339282808,1727437840200,-500.0,0.0001189,2]
[339282810,1727437840209,-500.0,0.0001189,2]
[339282813,1727437840219,-795.04,0.0001189,2]
[339282814,1727437840229,-795.04,0.0001189,2]
[339282817,1727437840238,-531.84,0.0001189,2]
[339282818,1727437840248,-531.84,0.0001189,2]
[339282820,1727437840256,-502.96673677,0.0001189,2]
[339282822,1727437840265,-1633.19,0.0001189,2]
[339282824,1727437840275,-1633.19,0.0001189,2]
[339282826,1727437840284,-664.76,0.0001189,2]
[339282828,1727437840294,-692.44,0.0001189,2]
[339282830,1727437840303,-692.44,0.0001189,2]
[339282832,1727437840313,-500.0,0.0001189,2]
[339282834,1727437840322,-500.0,0.0001189,2]
[339282836,1727437840331,-500.0,0.0001189,2]
[339282838,1727437840341,-1088.91,0.0001189,2]
[339282840,1727437840349,-1088.91,0.0001189,2]
[339282842,1727437840359,-738.3,0.0001189,2]
[339282844,1727437840368,-500.0,0.0001189,2]
[339282846,1727437840377,-500.0,0.0001189,2]
[339282848,1727437840388,-959.65,0.0001189,2]
[339282850,1727437840397,-959.65,0.0001189,2]
[339282852,1727437840407,-500.0,0.0001189,2]
[339282854,1727437840417,-500.0,0.0001189,2]
[339282856,1727437840427,-500.0,0.0001189,2]
[339282858,1727437840437,-747.77,0.0001189,2]
[339282860,1727437840447,-500.0,0.0001189,2]
[339282862,1727437840456,-747.77,0.0001189,2]
[339282864,1727437840466,-500.0,0.0001189,2]
[339282866,1727437840476,-500.0,0.0001189,2]
[339282868,1727437840486,-500.0,0.0001189,2]
[339282870,1727437840496,-500.0,0.0001189,2]
[339282872,1727437840505,-500.0,0.0001189,2]
[339282874,1727437840514,-500.0,0.0001189,2]
[339282876,1727437840524,-500.0,0.0001189,2]
[339282878,1727437840533,-500.0,0.0001189,2]
[339282880,1727437840543,-500.0,0.0001189,2]
[339282882,1727437840552,-500.0,0.0001189,2]
[339282884,1727437840561,-500.0,0.0001189,2]
[339282886,1727437840571,-500.0,0.0001189,2]
[339282888,1727437840581,-500.0,0.0001189,2]
[339282890,1727437840591,-500.0,0.0001189,2]
[339282892,1727437840600,-525.8,0.0001189,2]
[339282894,1727437840611,-835.88,0.0001189,2]
[339282896,1727437840621,-835.88,0.0001189,2]
[339282898,1727437840630,-649.72,0.0001189,2]
[339282900,1727437840640,-649.72,0.0001189,2]
[339282902,1727437840650,-500.0,0.0001189,2]
[339282904,1727437840659,-500.0,0.0001189,2]
[339282906,1727437840668,-500.0,0.0001189,2]
[339282908,1727437840678,-500.0,0.0001189,2]
[339282910,1727437840688,-575.09,0.0001189,2]
[339282913,1727437840699,-500.0,0.0001189,2]
[339282915,1727437840708,-500.0,0.0001189,2]
[339282916,1727437840718,-500.0,0.0001189,2]
[339282919,1727437840729,-500.0,0.0001189,2]
[339282920,1727437840739,-1265.61,0.0001189,2]
[339282922,1727437840749,-1265.61,0.0001189,2]
[339282924,1727437840759,-500.0,0.0001189,2]
[339282926,1727437840768,-1074.02,0.0001189,2]
[339282928,1727437840778,-1074.02,0.0001189,2]
[339282930,1727437840788,-500.0,0.0001189,2]
[339282932,1727437840797,-500.0,0.0001189,2]
[339282934,1727437840807,-505.61474664,0.0001189,2]
[339282936,1727437840816,-928.12,0.0001189,2]
[339282938,1727437840825,-928.12,0.0001189,2]
[339282940,1727437840835,-517.01,0.0001189,2]
[339282942,1727437840845,-500.0,0.0001189,2]
[339282944,1727437840854,-500.0,0.0001189,2]
[339282946,1727437840865,-517.01,0.0001189,2]
[339282948,1727437840875,-500.0,0.0001189,2]
[339282950,1727437840884,-500.0,0.0001189,2]
[339282952,1727437840894,-500.0,0.0001189,2]
[339282954,1727437840903,-500.0,0.0001189,2]
[339282957,1727437840915,-514.08,0.0001189,2]
[339282959,1727437840925,-721.71,0.0001189,2]
[339282961,1727437840934,-500.0,0.0001189,2]
[339282963,1727437840944,-500.0,0.0001189,2]
[339282965,1727437840955,-500.0,0.0001189,2]
[339282967,1727437840965,-500.0,0.0001189,2]
[339282969,1727437840974,-500.0,0.0001189,2]
[339282971,1727437840984,-500.0,0.0001189,2]
[339282973,1727437840995,-500.0,0.0001189,2]
[339282975,1727437841005,-500.0,0.0001189,2]
[339282977,1727437841015,-500.0,0.0001189,2]
[339282979,1727437841025,-500.0,0.0001189,2]
[339282981,1727437841035,-500.0,0.0001189,2]
[339282983,1727437841044,-597.5,0.0001189,2]
[339282985,1727437841054,-715.49,0.0001189,2]
[339282987,1727437841063,-715.49,0.0001189,2]
[339282989,1727437841072,-709.95,0.0001189,2]
[339282991,1727437841082,-600.03,0.0001189,2]
[339282993,1727437841092,-709.95,0.0001189,2]
[339282995,1727437841101,-600.03,0.0001189,2]
[339282997,1727437841111,-500.0,0.0001189,2]
[339282999,1727437841122,-500.0,0.0001189,2]
[339283001,1727437841131,-595.12,0.0001189,2]
[339283003,1727437841140,-3304.21,0.0001189,2]
[339283005,1727437841150,-698.75,0.0001189,2]
[339283007,1727437841159,-500.0,0.0001189,2]
[339283009,1727437841168,-500.0,0.0001189,2]
[339283011,1727437841177,-500.0,0.0001189,2]
[339283013,1727437841186,-500.0,0.0001189,2]
[339283015,1727437841195,-500.0,0.0001189,2]
[339283017,1727437841205,-584.28,0.0001189,2]
[339283019,1727437841215,-584.28,0.0001189,2]
[339283021,1727437841225,-500.0,0.0001189,2]
[339283023,1727437841234,-500.0,0.0001189,2]
[339283025,1727437841243,-546.8,0.0001189,2]
[339283027,1727437841253,-500.0,0.0001189,2]
[339283029,1727437841263,-500.0,0.0001189,2]
[339283031,1727437841272,-728.81,0.0001189,2]
[339283033,1727437841281,-500.0,0.0001189,2]
[339283035,1727437841291,-774.04,0.0001189,2]
[339283037,1727437841300,-774.04,0.0001189,2]
[339283039,1727437841310,-724.92,0.0001189,2]
[339283041,1727437841320,-724.92,0.0001189,2]
[339283042,1727437841329,-693.75,0.0001189,2]
[339283043,1727437841339,-693.75,0.0001189,2]
[339283044,1727437841348,-500.0,0.0001189,2]
[339283045,1727437841358,-500.0,0.0001189,2]
[339283046,1727437841367,-1324.14,0.0001189,2]
[339283047,1727437841376,-500.0,0.0001189,2]
[339283048,1727437841386,-500.0,0.0001189,2]
[339283049,1727437841395,-841.23,0.0001189,2]
[339283050,1727437841405,-500.0,0.0001189,2]
[339283051,1727437841414,-841.23,0.0001189,2]
[339283052,1727437841423,-608.21,0.0001189,2]
[339283054,1727437841432,-784.22,0.0001189,2]
[339283055,1727437841442,-784.22,0.0001189,2]
[339283057,1727437841451,-500.0,0.0001189,2]
[339283059,1727437841461,-500.0,0.0001189,2]
[339283061,1727437841470,-632.35,0.0001189,2]
[339283063,1727437841479,-632.35,0.0001189,2]
[339283065,1727437841489,-876.15,0.0001189,2]
[339283067,1727437841498,-513.12,0.0001189,2]
[339283069,1727437841507,-513.12,0.0001189,2]
[339283071,1727437841516,-427.61767989,0.0001189,2]
[339283073,1727437841525,-500.0,0.0001189,2]
[339283075,1727437841534,-500.0,0.0001189,2]
[339283077,1727437841544,-2660.01,0.0001189,2]
[339283079,1727437841553,-500.0,0.0001189,2]
[339283081,1727437841563,-500.0,0.0001189,2]
[339283083,1727437841572,-1291.39,0.0001189,2]
[339283085,1727437841582,-500.0,0.0001189,2]
[339283087,1727437841597,-1291.39,0.0001189,2]
[339283089,1727437841607,-500.0,0.0001189,2]
[339283091,1727437841619,-500.0,0.0001189,2]
[339283093,1727437841629,-500.0,0.0001189,2]
[339283095,1727437841638,-500.0,0.0001189,2]
[339283097,1727437841648,-860.41,0.0001189,2]
[339283099,1727437841658,-500.0,0.0001189,2]
[339283101,1727437841668,-500.0,0.0001189,2]
[339283103,1727437841677,-500.0,0.0001189,2]
[339283105,1727437841687,-500.0,0.0001189,2]
[339283107,1727437841696,-500.0,0.0001189,2]
[339283109,1727437841705,-500.0,0.0001189,2]
[339283111,1727437841714,-500.0,0.0001189,2]
[339283113,1727437841724,-500.0,0.0001189,2]
[339283115,1727437841733,-500.0,0.0001189,2]
[339283117,1727437841743,-500.0,0.0001189,2]
[339283119,1727437841753,-500.0,0.0001189,2]
[339283121,1727437841763,-500.0,0.0001189,2]
[339283123,1727437841772,-891.17,0.0001189,2]
[339283126,1727437841781,-891.17,0.0001189,2]
[339283127,1727437841791,-2252.93,0.0001189,2]
[339283129,1727437841801,-500.0,0.0001189,2]
[339283131,1727437841810,-817.76,0.0001189,2]
[339283133,1727437841820,-500.0,0.0001189,2]
[339283135,1727437841829,-500.0,0.0001189,2]
[339283137,1727437841838,-500.0,0.0001189,2]
[339283139,1727437841847,-500.0,0.0001189,2]
[339283141,1727437841857,-500.0,0.0001189,2]
[339283143,1727437841866,-500.0,0.0001189,2]
[339283145,1727437841875,-500.0,0.0001189,2]
[339283147,1727437841885,-500.0,0.0001189,2]
[339283149,1727437841894,-500.0,0.0001189,2]
[339283151,1727437841904,-3343.05,0.0001189,2]
[339283152,1727437841916,-500.0,0.0001189,2]
[339283154,1727437841925,-500.0,0.0001189,2]
[339283156,1727437841935,-500.0,0.0001189,2]
[339283158,1727437841944,-836.99,0.0001189,2]
[339283160,1727437841954,-836.99,0.0001189,2]
[339283162,1727437841963,-533.61,0.0001189,2]
[339283164,1727437841973,-500.0,0.0001189,2]
[339283166,1727437841982,-500.0,0.0001189,2]
[339283169,1727437841992,-500.0,0.0001189,2]
[339283171,1727437842003,-500.0,0.0001189,2]
[339283173,1727437842013,-500.0,0.0001189,2]
[339283175,1727437842022,-500.0,0.0001189,2]
[339283177,1727437842032,-1371.31,0.0001189,2]
[339283179,1727437842041,-1371.31,0.0001189,2]
[339283181,1727437842050,-1159.04,0.0001189,2]
[339283206,1727437842272,-1159.04,0.0001189,2]
[339283208,1727437842282,-513.18,0.0001189,2]
[339283210,1727437842291,-500.0,0.0001189,2]
[339283212,1727437842301,-513.18,0.0001189,2]
[339283214,1727437842310,-500.0,0.0001189,2]
[339283216,1727437842321,-500.0,0.0001189,2]
[339283218,1727437842330,-500.0,0.0001189,2]
[339283220,1727437842340,-928.71,0.0001189,2]
[339283222,1727437842349,-500.0,0.0001189,2]
[339283224,1727437842359,-500.0,0.0001189,2]
[339283226,1727437842368,-500.0,0.0001189,2]
[339283228,1727437842377,-500.0,0.0001189,2]
[339283230,1727437842387,-500.0,0.0001189,2]
[339283232,1727437842396,-904.83,0.0001189,2]
[339283234,1727437842405,-561.91,0.0001189,2]
[339283236,1727437842414,-561.91,0.0001189,2]
[339283239,1727437842424,-507.08716192,0.0001189,2]
[339283241,1727437842433,-500.0,0.0001189,2]
[339283243,1727437842442,-500.0,0.0001189,2]
[339283245,1727437842451,-500.0,0.0001189,2]